Cogmind - Beta 17 @@@ ROGUE MODE // 2026.08.19 @ 02:40:27 Player: 4R-ZE3 Result: Destroyed by MAIN.C with Heavy Quantum Rifle Performance ------------- Evolutions (9) 4500 Regions Visited (28) 5600 Robots Destroyed (283) 1415 Value Destroyed (15644) 15644 Prototype IDs (29) 580 Alien Tech Used (0) 0 Bonus (11470) 11470 TOTAL SCORE: 39209 Bonus ------- High Alert Combat Kills 643 Follower Combat Kills 1132 Entered Garrisons 1200 Used RIF Installer 3000 Aligned with FarCom 300 Destroyed MAIN.C Guards 500 Met MAIN.C 5000 Friendly Fire -305 Cogmind --------- Core Integrity 0/1600 Matter 170/300 Energy 325/325 System Corruption 41% Temperature Cool (9) Movement Core (400) Ox7 Location -1/Command Parts ------- > --- POWER (3) -------- Antimatter Reactor > --- PROPULSION (6) --- (None) > --- UTILITY (13) ----- Advanced Heat Sink Advanced Heat Sink Quantum Capacitor Graphene Brace > --- WEAPON (3) ------- (None) > --- INVENTORY (5) ---- (None) Peak State ------------ > --- POWER ------------ Antimatter Reactor Quantum Reactor Light Quantum Reactor > --- PROPULSION ------- Biometal Heavy Treads Advanced Heavy Siege Treads Advanced Heavy Siege Treads > --- UTILITY ---------- Advanced Cooling System Advanced Cooling System Advanced Coolant Injector Huge Storage Unit Advanced Particle Charger Quantum Capacitor Layered Medium Armor Plating Heavy Reflective Plating Graphene Brace Advanced Hardlight Generator Improved Point Defense System > --- WEAPON ----------- Compact HERF Cannon Matter Neutralizer Advanced Remote Datajack > --- INVENTORY -------- Quantum Reactor Light Quantum Reactor Advanced Heavy Siege Treads Advanced Heavy Siege Treads Advanced Cryofiber Web Advanced Cryofiber Web Advanced Heat Sink Advanced Heat Sink Advanced Terrain Scanner Advanced ECM Suite Layered Medium Armor Plating Layered Medium Armor Plating Layered Medium Armor Plating Improved Focal Shield Improved Thermal Shield Gamma Rifle Gamma Rifle Heavy Laser Phase Gun Long-range Proton Cannon Compact HERF Cannon Advanced Remote Datajack [Rating: 195] Favorites ----------- Power Antimatter Reactor Engine Improved Deuterium Engine Power Core Micro Nuclear Core Reactor Antimatter Reactor Propulsion Heavy Treads Treads Heavy Treads Leg Improved Aluminum Leg Wheel Wheel Utility Huge Storage Unit Device Advanced Cooling System Storage Huge Storage Unit Processor Improved Targeting Computer Hackware Relay Coupler [NC] Protection Improved Medium Armor Plating Weapon Cooled Particle Cannon Energy Gun Medium Laser Energy Cannon Cooled Particle Cannon Ballistic Gun Assault Rifle Ballistic Cannon Light Cannon Launcher Long-range Missile Launcher Special Weapon Improved Remote Datajack Slashing Weapon Katana Special Melee Weapon Datajack Build | -11 -10 -10 -10 -9 -8 -8 -8 -8 -7 -7 -7 -7 -6 -6 -6 -6 -5 -5 -4 -4 -4 -4 -4 -3 -3 -2 -1 -1 ------- Run | Yrd Mat Min Exi Min Mat Gar Mat Gar Fac Gar Fac Gar Fac Was Fac Gar Fac Gar Fac Was Fac Upp Upp Res Arm Res Acc Com Slots Evolved 18 | . . . . . 4 . . . 2 . . . 2 . . . 2 . 2 . . . . 2 . 2 2 . Power 2 | . . . . . . . . . 1 . . . . . . . . . . . . . . 1 . . . . Propulsion 4 | . . . . . 2 . . . . . . . . . . . 2 . . . . . . . . . . . Utility 11 | . . . . . 1 . . . 1 . . . 2 . . . . . 2 . . . . 1 . 2 2 . Weapon 1 | . . . . . 1 . . . . . . . . . . . . . . . . . . . . . . . Parts Attached 199 | 6 10 2 . 2 27 2 12 6 11 7 8 10 5 7 2 5 7 9 2 9 3 1 . 2 12 5 18 9 Power 27 | 1 3 . . 1 2 . . . 2 1 . 3 1 2 . . 1 1 . 2 . . . 1 1 1 3 1 Engine 12 | 1 3 . . 1 2 . . . 2 1 . 1 . . . . 1 . . . . . . . . . . . Core 4 | . . . . . . . . . . . . 2 1 . . . . . . . . . . 1 . . . . Reactor 11 | . . . . . . . . . . . . . . 2 . . . 1 . 2 . . . . 1 1 3 1 Propulsion 50 | 2 2 . . 1 10 1 5 . 1 2 2 2 1 2 . . 2 2 . 5 . . . . 5 . 3 2 Treads 39 | 2 . . . . 6 1 4 . 1 2 . 1 1 2 . . 2 2 . 5 . . . . 5 . 3 2 Leg 2 | . . . . . 2 . . . . . . . . . . . . . . . . . . . . . . . Wheel 9 | . 2 . . 1 2 . 1 . . . 2 1 . . . . . . . . . . . . . . . . Hover . | . . . . . . . . . . . . . . . . . . . . . . . . . . . . . Flight . | . . . . . . . . . . . . . . . . . . . . . . . . . . . . . Utility 76 | 1 3 . . . 8 1 2 3 4 3 6 4 1 1 2 3 2 4 2 2 2 1 . 1 4 3 7 6 Device 38 | . 1 . . . 4 1 1 3 3 2 3 1 1 . 1 . 2 1 1 2 . . . . 3 2 3 3 Storage 3 | 1 1 . . . 1 . . . . . . . . . . . . . . . . . . . . . . . Processor 1 | . . . . . . . . . . . 1 . . . . . . . . . . . . . . . . . Hackware 18 | . . . . . 2 . 1 . . 1 1 3 . 1 1 1 . 2 . . 2 1 . 1 . . 1 . Protection 16 | . 1 . . . 1 . . . 1 . 1 . . . . 2 . 1 1 . . . . . 1 1 3 3 Artifact . | . . . . . . . . . . . . . . . . . . . . . . . . . . . . . Weapon 46 | 2 2 2 . . 7 . 5 3 4 1 . 1 2 2 . 2 2 2 . . 1 . . . 2 1 5 . Energy Gun 10 | 1 1 . . . 6 . . . . . . . . . . . . . . . . . . . . . 2 . Energy Cannon 19 | . . . . . 1 . 3 2 2 . . 1 1 2 . 1 2 . . . 1 . . . 2 . 1 . Ballistic Gun 1 | 1 . . . . . . . . . . . . . . . . . . . . . . . . . . . . Ballistic Cannon 2 | . 1 1 . . . . . . . . . . . . . . . . . . . . . . . . . . Launcher 3 | . . 1 . . . . . 1 . . . . . . . 1 . . . . . . . . . . . . Special Weapon 9 | . . . . . . . . . 2 1 . . 1 . . . . 2 . . . . . . . 1 2 . Impact Weapon . | . . . . . . . . . . . . . . . . . . . . . . . . . . . . . Slashing Weapon 1 | . . . . . . . 1 . . . . . . . . . . . . . . . . . . . . . Piercing Weapon . | . . . . . . . . . . . . . . . . . . . . . . . . . . . . . Special Melee Weapon 1 | . . . . . . . 1 . . . . . . . . . . . . . . . . . . . . . Unidentified Prototypes 6 | . . . . . 1 . . . 1 1 . . 1 . . . . . . 1 . . . . . . . 1 Corrupted Parts 1 | . . . . . . . . . . . . . . . . . . . . . . . . . . . . 1 System Corruption 3 | . . . . . . . . . . . . . . . . . . . . . . . . . . . . 3 Parts Lost 61 | . 6 . . 3 6 1 . 1 . 1 4 6 . . . 2 . 1 . . 1 . . . 5 2 3 19 Power 10 | . 2 . . 1 . . . . . 1 . 2 . . . 1 . . . . . . . . 1 . . 2 Propulsion 15 | . 2 . . 1 3 . . . . . 2 2 . . . . . . . . . . . . . . . 5 Utility 23 | . . . . . 1 . . 1 . . 2 1 . . . 1 . 1 . . . . . . 2 1 2 11 Weapon 13 | . 2 . . 1 2 1 . . . . . 1 . . . . . . . . 1 . . . 2 1 1 1 Highest Loss Streak 9 | . 2 . . 3 3 1 . 1 . 1 1 4 . . . 1 . 1 . . 1 . . . 2 2 2 9 To Critical Strikes 2 | . . . . . . . . . . 1 1 . . . . . . . . . . . . . . . . . Average Backups 22 | 2 6 14 15 14 23 24 24 24 24 24 23 24 24 24 24 23 24 24 24 23 22 22 22 21 20 20 21 15 Power 2 | . 1 2 2 1 2 2 2 2 1 1 1 . 1 2 3 3 4 4 4 3 3 4 4 3 2 3 2 1 Propulsion 2 | 1 1 1 1 . 3 4 4 6 5 4 2 3 3 4 2 2 1 . . . 2 2 2 2 2 3 2 1 Utility 10 | . 2 4 5 5 9 9 10 9 8 11 13 13 12 11 12 11 12 11 13 12 12 12 12 11 11 10 10 7 Weapon 4 | . . 5 6 5 5 7 5 5 5 4 4 5 5 3 3 3 5 5 5 5 3 2 3 2 2 2 4 4 Tool/Special . | . . . . . . . . . . . . . . . . . . . . . . . . . . . . . Unused Backups 56 | . . . . . 13 4 4 2 1 6 . 1 1 2 . 1 . 3 . 3 1 . . . 1 1 5 7 Power 13 | . . . . . 2 . . . . 1 . . . 1 . . . . . 3 1 . . . . 1 3 1 Propulsion 7 | . . . . . 5 . 1 . . . . 1 . . . . . . . . . . . . . . . . Utility 22 | . . . . . 5 3 . 2 1 4 . . . . . 1 . 3 . . . . . . 1 . . 2 Weapon 12 | . . . . . 1 1 3 . . . . . 1 1 . . . . . . . . . . . . 2 3 Tool/Special 2 | . . . . . . . . . . 1 . . . . . . . . . . . . . . . . . 1 Average Slot Usage (%) 91 | . 96 100 100 99 97 100 99 99 99 99 99 99 94 91 86 85 87 87 83 83 83 84 84 79 83 84 82 61 Engine 6 | . 13 14 14 13 9 9 9 9 14 14 15 10 6 3 . 2 5 1 . . . . . . . . . . Reactor 5 | . . . . . . . . . . . . . . 6 13 10 5 9 10 10 10 10 10 9 12 13 12 9 Treads 18 | . 24 . . . 18 36 26 36 30 30 21 15 13 13 13 13 22 23 21 16 15 15 15 14 13 13 11 10 Wheel 4 | . 2 28 28 28 14 . 9 . . . 8 14 13 5 . . . . . . . . . . . . . . Device 16 | . . 14 14 14 15 18 17 18 19 21 11 5 12 13 12 12 11 12 12 13 15 15 15 16 16 23 27 22 Storage 6 | . 14 14 14 14 9 9 9 9 7 7 7 7 6 6 6 6 5 5 5 5 5 5 5 4 4 4 4 2 Hackware 7 | . . . . . . . . . . . 7 16 13 13 13 13 11 8 10 10 11 16 21 18 19 16 9 1 Protection 3 | . 11 . . . 1 . . . 2 . 3 . 1 6 6 6 5 5 7 10 8 3 . . 2 1 5 6 Energy Gun 3 | . 12 1 . 8 22 18 6 . . . . . . . . . . . . . . . . . . . . . Energy Cannon 12 | . . . . . 3 8 20 25 21 21 17 17 13 17 19 19 13 14 13 12 13 13 10 10 12 7 6 5 Ballistic Cannon 1 | . 6 26 28 19 1 . . . . . . . . . . . . . . . . . . . . . . . Special Weapon 1 | . . . . . . . . . . . 4 4 6 2 . . 2 1 1 2 1 1 5 3 . 3 3 2 Peak Build Rating 195 | 6 11 11 11 12 34 34 39 40 50 53 48 53 62 82 83 84 88 99 105 112 110 110 109 120 153 164 190 195 Average Rating 79 | 4 7 10 10 11 28 33 35 39 47 48 46 46 55 72 82 80 83 93 101 106 109 109 109 113 136 158 181 149 On Entrance 70 | . 6 11 10 11 12 34 34 38 40 50 47 46 46 62 82 82 81 88 97 105 109 110 109 109 119 149 157 190 Avg Prop Armor Cover (%) 14 | . 12 . . . 15 . 17 . . . 9 14 14 12 . . . . . 7 . . . . . . . 18 Naked Turns 48 | . . . . . . . . . . . . . . . . . . . . . . . . . . . . 48 Heaviest Build 205 | 12 52 50 50 52 107 106 114 116 133 128 126 123 122 144 144 161 146 157 153 151 153 147 134 157 177 181 202 205 Greatest Support 240 | 40 40 20 20 26 80 80 86 88 88 86 84 24 24 140 140 140 180 200 200 210 210 210 210 210 240 235 235 240 Greatest Overweight (x) 9 | . 5 2 2 2 4 1 5 1 1 1 5 9 5 5 1 1 . . . 1 . . . . . . 1 7 Average Overweight (x) 1 | . 1 2 2 1 2 1 3 1 1 1 2 4 4 2 . . . . . . . . . . . . . . Largest Inventory Capacity 25 | 8 20 20 20 20 25 25 25 25 25 25 25 25 25 25 25 25 25 25 25 25 25 25 25 25 25 25 25 25 Average Capacity 24 | 7 17 20 20 20 24 25 25 25 25 25 25 25 25 25 25 25 25 25 25 25 25 25 25 25 25 25 25 19 Most Carried 25 | 3 14 15 16 16 25 25 25 25 25 25 25 25 25 25 25 25 25 25 25 25 25 24 24 25 25 25 25 25 Average Carried 23 | 2 6 14 15 14 23 24 24 24 24 24 23 24 24 24 24 23 24 24 24 24 24 24 24 23 23 24 24 17 Final Capacity 25 | 8 20 20 20 20 25 25 25 25 25 25 25 25 25 25 25 25 25 25 25 25 25 25 25 25 25 25 25 5 Final Carried 25 | 3 11 15 16 14 25 24 25 25 25 24 25 23 25 25 24 25 25 25 23 25 24 24 24 22 24 23 25 . Class Distribution -------------------- 18% | Scavenger-Tank 17% | Bothacker-Skirmisher 15% | Bothacker-Tank 12% | Scavenger-Skirmisher 11% | Botlord-Tank 9% | Skirmisher 8% | Mutant Dominant Class ---------------- Mutant | -10/Materials Mutant | -10/Mines Mutant | -10/Exiles Mutant | -9/Mines Scavenger-Skirmisher | -8/Materials Scavenger-Skirmisher | -8/Garrison Scavenger-Skirmisher | -8/Materials Skirmisher | -8/Garrison Skirmisher | -7/Factory Bothacker-Skirmisher | -7/Garrison Bothacker-Skirmisher | -7/Factory Bothacker-Skirmisher | -7/Garrison Bothacker-Skirmisher | -6/Factory Bothacker-Tank | -6/Waste Bothacker-Tank | -6/Factory Bothacker-Tank | -6/Garrison Scavenger-Tank | -5/Factory Scavenger-Tank | -5/Garrison Botlord-Tank | -4/Factory Botlord-Tank | -4/Waste Botlord-Tank | -4/Factory Botlord-Tank | -4/Upper Caves Botlord-Tank | -4/Upper Caves Botlord-Tank | -3/Research Bothacker-Tank | -3/Armory Bothacker-Tank | -2/Research Scavenger-Tank | -1/Access Scavenger-Tank | -1/Command Resources | -11 -10 -10 -10 -9 -8 -8 -8 -8 -7 -7 -7 -7 -6 -6 -6 -6 -5 -5 -4 -4 -4 -4 -4 -3 -3 -2 -1 -1 ----------- Run | Yrd Mat Min Exi Min Mat Gar Mat Gar Fac Gar Fac Gar Fac Was Fac Gar Fac Gar Fac Was Fac Upp Upp Res Arm Res Acc Com Matter Collected 5061 | 222 390 132 . 75 367 151 215 317 185 217 115 271 . 180 31 228 207 382 . 186 194 63 . . 325 67 453 88 Remotely . | . . . . . . . . . . . . . . . . . . . . . . . . . . . . . Salvage Created 15556 | . 731 83 . . 1579 292 399 591 608 518 266 426 . 1578 28 1005 506 1021 . 1379 833 164 . . 1138 265 1737 409 Parts 648 | . 37 12 . . 68 15 25 22 26 30 9 15 . 13 . 29 27 44 . 25 44 4 . . 48 14 105 36 Haulers Intercepted 1 | . . . . . . . . . 1 . . . . . . . . . . . . . . . . . . . Recyclers Shooed 5 | . 2 . . . 1 . . . . . . . 1 . . . . . . . 1 . . . . . . . Parts Field Recycled . | . . . . . . . . . . . . . . . . . . . . . . . . . . . . . Retrieved Matter . | . . . . . . . . . . . . . . . . . . . . . . . . . . . . . Parts Self-Destructed 5 | . . . . . . . . . . . . . . . . . . . . . . 5 . . . . . . Prevented . | . . . . . . . . . . . . . . . . . . . . . . . . . . . . . Parts Restored . | . . . . . . . . . . . . . . . . . . . . . . . . . . . . . Kills | -11 -10 -10 -10 -9 -8 -8 -8 -8 -7 -7 -7 -7 -6 -6 -6 -6 -5 -5 -4 -4 -4 -4 -4 -3 -3 -2 -1 -1 ------- Run | Yrd Mat Min Exi Min Mat Gar Mat Gar Fac Gar Fac Gar Fac Was Fac Gar Fac Gar Fac Was Fac Upp Upp Res Arm Res Acc Com Combat Hostiles Destroyed 271 | . 18 11 . . 28 12 11 15 11 14 5 9 . 7 1 20 12 20 . 5 17 2 . . 15 4 27 7 Guns 34 | . 11 1 . . 18 3 1 . . . . . . . . . . . . . . . . . . . . . Cannons 191 | . 7 7 . . 7 3 10 11 11 11 5 9 . 6 1 17 7 18 . 4 16 2 . . 12 4 19 4 AOE 23 | . . 3 . . 2 5 . 4 . 2 . . . . . 3 3 1 . . . . . . . . . . Classes Destroyed 19 | . 3 2 . . 5 . . 2 2 . . . . 1 . 1 . 2 . . . . . . 1 . . . Worker 2 | . . . . . . . . . 1 . . . . . . . . . . . . . . . . . 1 . Tunneler 1 | . . 1 . . . . . . . . . . . . . . . . . . . . . . . . . . Hauler 1 | . . . . . . . . . 1 . . . . . . . . . . . . . . . . . . . Recycler 3 | . 1 . . . 2 . . . . . . . . . . . . . . . . . . . . . . . Watcher 4 | . 1 . . . 1 . . . . . . . . . . . . . . . . . . . . . 1 1 Swarmer 57 | . . 11 . . 2 6 5 3 . 5 . . . . . . 4 8 . . 8 . . . . . 5 . Cutter 2 | . . . . . . . . . . . . . . . . . . 2 . . . . . . . . . . Saboteur 1 | . . . . . . . . . . . . . . . . . . . . . . . . . 1 . . . Grunt 82 | . 18 . . . 10 2 1 4 4 3 3 4 . . . 12 4 7 . . 4 2 . . . . 4 . Brawler 3 | . . . . . . . . 1 . . 1 . . . . 1 . . . . . . . . . . . . Duelist 6 | . . . . . 2 . . 1 2 . . . . . . . . 1 . . . . . . . . . . Sentry 29 | . . . . . 9 2 5 4 1 2 . . . 1 1 1 1 . . 1 . . . . 1 . . . Specialist 10 | . . . . . 2 2 . . . . . . . . . . . . . . . . . . 6 . . . Hunter 16 | . . . . . 2 . . . 1 . . 1 . . . 3 1 . . . 2 . . . 2 . 4 . Programmer 45 | . . . . . . . . 2 3 3 1 3 . . . . 2 3 . . 3 . . . 4 4 14 3 Heavy 1 | . . . . . 1 . . . . . . . . . . . . . . . . . . . . . . . Behemoth 2 | . . . . . . . . . . . . . . . . . . 1 . . . . . . 1 . . . Compactor 11 | . . . . . . . . . . . . . . 6 . . . . . 5 . . . . . . . . M Guard 2 | . . . . . . . . . . . . . . . . . . . . . . . . . . . . 2 Combat Programmer 2 | . . . . . . . . . . . . . . . . . . . . . . . . . . . . 2 Assembled 3 | . . . . . . . . . . . . . . . . 3 . . . . . . . . . . . . Infiltrator 3 | . . . . . . . . . . 1 . 1 . . . . . . . 1 . . . . . . . . Best Kill Streak 7 | . 4 3 . . 3 4 3 6 4 4 2 3 . 2 1 4 4 4 . 1 7 2 . . 5 2 5 4 Combat Bots Only 7 | . 4 3 . . 3 4 3 6 3 4 2 3 . 2 1 4 4 4 . 1 7 2 . . 5 2 5 4 Max Kills in Single Turn 3 | . 1 3 . . 2 2 1 3 2 1 1 2 . 1 1 3 3 2 . 1 2 1 . . 1 1 1 1 Gunslinging . | . . . . . . . . . . . . . . . . . . . . . . . . . . . . . Exploded 3 | . . 3 . . 2 2 . 3 . 1 . . . . . 3 3 1 . . . . . . . . . . Melee . | . . . . . . . . . . . . . . . . . . . . . . . . . . . . . Uniques/NPCs Destroyed . | . . . . . . . . . . . . . . . . . . . . . . . . . . . . . Combat | -11 -10 -10 -10 -9 -8 -8 -8 -8 -7 -7 -7 -7 -6 -6 -6 -6 -5 -5 -4 -4 -4 -4 -4 -3 -3 -2 -1 -1 -------- Run | Yrd Mat Min Exi Min Mat Gar Mat Gar Fac Gar Fac Gar Fac Was Fac Gar Fac Gar Fac Was Fac Upp Upp Res Arm Res Acc Com Hostile Shots Fired 1588 | . 107 33 . 7 102 61 42 36 76 78 26 51 . . 15 144 38 69 . . 96 8 . 3 153 40 122 281 Missed 379 | . 29 13 . 1 31 19 9 12 17 29 7 10 . . 3 39 5 16 . . 25 . . 1 28 5 27 53 Intercepted 12 | . . . . . . . . . . . . . . . . . . . . . . . . . . . . 12 Hits 1209 | . 78 20 . 6 71 42 33 24 59 49 19 41 . . 12 105 33 53 . . 71 8 . 2 125 35 95 228 Melee 9 | . . . . . . . . 2 3 . 2 . . . . . . 2 . . . . . . . . . . Projectile 1200 | . 78 20 . 6 71 42 33 22 56 49 17 41 . . 12 105 33 51 . . 71 8 . 2 125 35 95 228 AOE 16 | . . . . . . . . 1 1 . . . . . . . . 1 . . . . . . . . 1 12 Critical Strikes 67 | . 3 . . . 9 1 2 2 1 1 1 2 . . . 1 4 . . . 4 1 . . 6 4 9 16 Actively Blocked 34 | . . . . . . . . . . . . . . . . . . . . . . . . . 6 4 9 15 Part Disruptions 12 | . . . . . . . . . . . . . . . . . . . . . . . . . . . 1 11 Damage Taken 22844 | . 940 161 . 91 1095 389 167 317 654 543 448 760 . . 179 1404 671 1020 . . 1252 169 . 52 2449 802 1755 7526 Core 2711 | . 101 40 . . 242 21 26 37 41 37 52 116 . . . 147 41 57 . . 55 25 . . 54 . 199 1420 Absorbed by Shields 1890 | . . . . . 208 168 124 76 208 172 24 35 . . . 19 . . . . . . . . 384 16 264 192 Reduced by Siege Mode 1662 | . . . . . . . . . . . . . . . . 85 37 100 . . 38 28 . . 592 176 121 485 Redirected to Shielding 22 | . 18 . . . 4 . . . . . . . . . . . . . . . . . . . . . . . Ignored by Resistances 496 | . . . . . . . . . . . 16 . . . 11 109 . 15 . . 20 . . . . . 98 227 Regen/Repaired (Parts) 1776 | . . . . . . . . . . . 260 271 . . . . 771 474 . . . . . . . . . . Core Remaining (%) 78 | 100 . . . 43 . . . 40 . . . 64 . . . 82 . 90 . . . . 93 . 95 100 . . Volleys Fired 1036 | . 68 19 . 4 65 23 37 36 39 33 17 43 6 65 6 52 43 48 1 45 42 8 . 26 46 46 148 70 Largest 3 | . 2 2 . 2 3 3 3 3 3 3 3 3 1 3 3 3 3 3 1 3 3 2 . 2 3 2 2 1 Hottest 270 | . 95 95 . 60 203 196 225 235 235 140 140 155 35 150 150 185 240 223 7 163 210 120 . 120 270 180 178 105 Shots Fired 1921 | . 129 35 . 7 184 54 78 85 84 62 43 80 6 151 13 127 68 104 1 103 81 14 . 27 114 52 151 68 Gun 285 | . 85 5 . . 141 34 19 . . . . . . . . . . . . . . . . . . . 1 . Cannon 1549 | . 44 27 . 7 42 15 59 80 80 58 39 76 4 145 12 121 54 98 . 96 77 13 . 26 112 50 146 68 Launcher 22 | . . 3 . . 1 5 . 5 . 3 . . . . . 3 1 1 . . . . . . . . . . Special 65 | . . . . . . . . . 4 1 4 4 2 6 1 3 13 5 1 7 4 1 . 1 2 2 4 . Kinetic 121 | . 82 27 . 7 5 . . . . . . . . . . . . . . . . . . . . . . . Thermal 1682 | . 47 5 . . 178 49 78 80 80 58 39 76 4 145 12 121 54 98 . 96 77 13 . 26 108 50 133 55 Explosive 22 | . . 3 . . 1 5 . 5 . 3 . . . . . 3 1 1 . . . . . . . . . . Electromagnetic 31 | . . . . . . . . . . . . . . . . . . . . . . . . . 4 . 14 13 Robot Hit Streak 47 | . 13 4 . 5 35 15 10 10 13 12 10 12 2 15 9 21 19 34 14 31 10 7 . 9 39 47 37 19 Robot Miss Streak 8 | . 3 3 . 1 2 3 8 3 2 5 2 2 1 3 . 3 4 5 . 2 2 1 . 1 2 1 2 2 Penetration Max . | . . . . . . . . . . . . . . . . . . . . . . . . . . . . . Secondary Targets . | . . . . . . . . . . . . . . . . . . . . . . . . . . . . . Capacitor 225 | . . . . . . . . . . . . . . . . . . . . . . . . . . 13 145 67 Shots Hit Robots 1205 | . 85 18 . 6 137 37 31 38 55 28 24 42 2 122 5 83 36 65 1 92 38 11 . 2 89 27 76 55 Core Hits 447 | . 38 14 . 1 58 18 12 25 20 19 9 12 1 14 2 36 17 32 . 15 25 6 . . 24 7 27 15 Critical Kills 15 | . . . . . 1 1 . . . 1 . . . 1 . . 2 1 . 1 1 . . . 2 . 3 1 Critical Parts Destroyed . | . . . . . . . . . . . . . . . . . . . . . . . . . . . . . Critical Strikes 29 | . 3 1 . . 10 2 . . . 1 . . . 1 . . 2 1 . 1 1 . . . 2 . 3 1 Burn 13 | . 3 . . . 9 1 . . . . . . . . . . . . . . . . . . . . . . Meltdown 15 | . . . . . 1 1 . . . 1 . . . 1 . . 2 1 . 1 1 . . . 2 . 3 1 Blast 1 | . . 1 . . . . . . . . . . . . . . . . . . . . . . . . . . Melee Attacks 15 | . . . . . . . 4 5 6 . . . . . . . . . . . . . . . . . . . Impact . | . . . . . . . . . . . . . . . . . . . . . . . . . . . . . Slashing 12 | . . . . . . . 2 5 5 . . . . . . . . . . . . . . . . . . . Piercing . | . . . . . . . . . . . . . . . . . . . . . . . . . . . . . Sneak Attacks . | . . . . . . . . . . . . . . . . . . . . . . . . . . . . . Combat Hostiles . | . . . . . . . . . . . . . . . . . . . . . . . . . . . . . Follow-up Attacks . | . . . . . . . . . . . . . . . . . . . . . . . . . . . . . Damage Inflicted 36953 | . 1325 518 . 106 2515 962 753 1372 1412 1266 620 1135 34 3818 114 2689 1265 2858 . 2601 1271 329 . 26 3061 1066 3499 2338 Guns 3328 | . 872 46 . . 1901 383 126 . . . . . . . . . . . . . . . . . . . . . Cannons 31468 | . 453 250 . 106 517 232 627 1049 1412 830 620 1135 34 3818 114 2362 1024 2694 . 2601 1271 329 . 26 3061 1066 3499 2338 Explosions 2155 | . . 222 . . 97 347 . 323 . 436 . . . . . 325 241 164 . . . . . . . . . . Melee . | . . . . . . . . . . . . . . . . . . . . . . . . . . . . . Ramming 2 | . . . . . . . . . . . . . . . . 2 . . . . . . . . . . . . Kinetic 1218 | . 850 250 . 106 12 . . . . . . . . . . . . . . . . . . . . . . . Thermal 32776 | . 475 46 . . 2406 615 753 1049 1412 830 620 1135 34 3818 114 2362 1024 2694 . 2601 1271 329 . 26 2996 1066 2967 2133 Explosive 2155 | . . 222 . . 97 347 . 323 . 436 . . . . . 325 241 164 . . . . . . . . . . Electromagnetic 802 | . . . . . . . . . . . . . . . . . . . . . . . . . 65 . 532 205 Impact . | . . . . . . . . . . . . . . . . . . . . . . . . . . . . . Slashing . | . . . . . . . . . . . . . . . . . . . . . . . . . . . . . Piercing . | . . . . . . . . . . . . . . . . . . . . . . . . . . . . . Highest Corruption 41 | . . . . . 2 2 2 5 . . 3 1 . . . . 2 2 . . 5 5 5 . 13 8 10 41 Average Corruption 4 | . . . . . 1 2 2 3 . . 2 1 . . . . 1 2 . . 4 5 5 . 7 7 6 18 Corruption Purged 3 | . . . . . . . . . . . 3 . . . . . . . . . . . . . . . . . Corruption Blocked . | . . . . . . . . . . . . . . . . . . . . . . . . . . . . . Effects 222 | . . . . . 12 9 12 24 . . 2 6 . . . . 3 28 . . 17 13 . . 15 2 56 23 Message Errors 51 | . . . . . 3 2 3 4 . . 1 . . . . . 1 5 . . 4 4 . . 6 1 13 4 Matter Fused 56 | . . . . . 2 2 4 9 . . 1 2 . . . . 1 6 . . 6 4 . . 3 . 12 4 Heat Flow Errors 24 | . . . . . 3 2 . 2 . . . 2 . . . . 1 3 . . . 1 . . 2 . 7 1 Energy Discharges 23 | . . . . . 1 2 1 1 . . . 1 . . . . . 4 . . 2 . . . . . 10 1 Parts Rejected 3 | . . . . . . . . . . . . . . . . . . . . . . . . . . 1 1 1 Parts Fused 2 | . . . . . . . . . . . . . . . . . . 2 . . . . . . . . . . Data Loss (minor) 25 | . . . . . 2 1 2 2 . . . . . . . . . 7 . . 1 2 . . 1 . 5 2 Data Loss (major) 13 | . . . . . . . . 2 . . . 1 . . . . . . . . 3 1 . . . . 2 4 Misfires 9 | . . . . . . . 2 3 . . . . . . . . . . . . 1 . . . 1 . 2 . Alerts 8 | . . . . . . . . . . . . . . . . . . 1 . . . 1 . . . . 4 2 Misdirections 2 | . . . . . . . . . . . . . . . . . . . . . . . . . . . . 2 Weapon Failures 6 | . . . . . 1 . . 1 . . . . . . . . . . . . . . . . 2 . . 2 Overload Shots 18 | . . . . . . . . . 4 2 . 4 . . . 4 . 4 . . . . . . . . . . Effects 1 | . . . . . . . . . . . . 1 . . . . . . . . . . . . . . . . Short Circuit 1 | . . . . . . . . . . . . 1 . . . . . . . . . . . . . . . . Overflow Damage 818 | . . 15 . . 4 3 30 . 2 26 4 18 . . . 87 44 38 . . . . . . 74 146 277 50 Projectiles 800 | . . . . . 4 . 30 . 2 26 4 18 . . . 87 44 38 . . . . . . 74 146 277 50 Explosions 18 | . . 15 . . . 3 . . . . . . . . . . . . . . . . . . . . . . Melee . | . . . . . . . . . . . . . . . . . . . . . . . . . . . . . Knockbacks 10 | . 6 3 . 1 . . . . . . . . . . . . . . . . . . . . . . . . Impact . | . . . . . . . . . . . . . . . . . . . . . . . . . . . . . Kinetic 9 | . 6 2 . 1 . . . . . . . . . . . . . . . . . . . . . . . . Secondary 1 | . . 1 . . . . . . . . . . . . . . . . . . . . . . . . . . Self-Inflicted Damage 106 | . . . . . . 45 . . . . . . . . . . 61 . . . . . . . . . . . Shots 3 | . . . . . . 2 . . . . . . . . . . 1 . . . . . . . . . . . Rammed 2 | . . . . . . . . . . . . . . . . 2 . . . . . . . . . . . . Targets Rammed 2 | . . . . . . . . . . . . . . . . 2 . . . . . . . . . . . . Kicked . | . . . . . . . . . . . . . . . . . . . . . . . . . . . . . Crushed . | . . . . . . . . . . . . . . . . . . . . . . . . . . . . . Highest Temperature 505 | . 304 . . . 313 331 289 286 476 7 302 325 . . 27 287 262 224 . . . 125 . . 340 132 313 505 Average Temperature 101 | . 77 . . . 99 97 121 107 170 4 113 129 . . 12 110 71 43 . . . 79 . . 46 65 74 146 Received Heat Transfer 3408 | . 579 . . 54 319 77 45 93 195 86 112 215 . . 42 463 126 231 . . 76 45 . 9 39 . 46 556 Effects 23 | . . . . . 4 . 3 . 6 . . 3 . . . 1 . . . . . . . . 1 . . 5 Shutdowns 5 | . . . . . . . . . 2 . . 1 . . . . . . . . . . . . 1 . . 1 Energy Bleed 6 | . . . . . 1 . . . 2 . . 2 . . . 1 . . . . . . . . . . . . Interference 11 | . . . . . 3 . 3 . 2 . . . . . . . . . . . . . . . . . . 3 Damage (major) 1 | . . . . . . . . . . . . . . . . . . . . . . . . . . . . 1 Siege Activations 50 | . . . . . . . . . . . . . . . . 6 3 9 . 1 3 1 . . 6 6 12 3 Total Turns 862 | . . . . . . . . . . . . . . . . 111 59 100 . 13 44 26 . . 250 59 118 82 Longest Duration 138 | . . . . . . . . . . . . . . . . 32 37 29 . 13 25 26 . . 138 22 62 49 Martial Activations . | . . . . . . . . . . . . . . . . . . . . . . . . . . . . . Shielding Activations . | . . . . . . . . . . . . . . . . . . . . . . . . . . . . . Robots Disrupted 1 | . . . . . . . . . . . . . . . . . . . . . . . . . . . 1 . Combat Hostiles 1 | . . . . . . . . . . . . . . . . . . . . . . . . . . . 1 . Robots Corrupted 7 | . . . . . . . . . . . . . . . . . . . . . . . . . . . 5 2 Combat Hostiles 7 | . . . . . . . . . . . . . . . . . . . . . . . . . . . 5 2 Parts Fried 11 | . . . . . . . . . . . . . . . . . . . . . . . . . . . 7 4 Impact Corruptions . | . . . . . . . . . . . . . . . . . . . . . . . . . . . . . Robots Melted 16 | . . . . . 1 1 . . . 1 . . . 1 . . 2 1 . 1 1 . . . 3 . 3 1 Combat Hostiles 16 | . . . . . 1 1 . . . 1 . . . 1 . . 2 1 . 1 1 . . . 3 . 3 1 Parts Melted 116 | . . . . . 21 2 3 5 8 7 1 2 . . . 14 10 6 . 4 5 . . . 13 4 11 . Heat Transferred 43517 | . 1443 111 . . 5809 1332 1147 1489 2492 1214 968 1343 50 5475 161 3215 1136 2925 . 3858 1571 407 . 37 3108 925 2331 970 Parts Sabotaged . | . . . . . . . . . . . . . . . . . . . . . . . . . . . . . Parts Stolen . | . . . . . . . . . . . . . . . . . . . . . . . . . . . . . Parts Stripped . | . . . . . . . . . . . . . . . . . . . . . . . . . . . . . Power Chain Reactions . | . . . . . . . . . . . . . . . . . . . . . . . . . . . . . Alert | -11 -10 -10 -10 -9 -8 -8 -8 -8 -7 -7 -7 -7 -6 -6 -6 -6 -5 -5 -4 -4 -4 -4 -4 -3 -3 -2 -1 -1 ------- Run | Yrd Mat Min Exi Min Mat Gar Mat Gar Fac Gar Fac Gar Fac Was Fac Gar Fac Gar Fac Was Fac Upp Upp Res Arm Res Acc Com Maximum Alert Level 3 | . 1 1 . . 2 2 1 2 1 3 2 2 1 . . 2 1 3 2 . 1 . . . 1 . 1 1 Low Security (%) 62 | 100 94 86 . 100 79 6 68 5 74 13 . . 54 100 100 44 53 7 . 100 97 . . 100 94 100 72 81 Level 1 20 | . 5 13 . . 19 33 31 42 25 28 50 33 45 . . 37 46 18 . . 2 . . . 5 . 27 18 Level 2 13 | . . . . . . 60 . 51 . 32 49 66 . . . 18 . 48 100 . . . . . . . . . Level 3 3 | . . . . . . . . . . 25 . . . . . . . 25 . . . . . . . . . . Level 4 . | . . . . . . . . . . . . . . . . . . . . . . . . . . . . . Level 5 . | . . . . . . . . . . . . . . . . . . . . . . . . . . . . . High Security . | . . . . . . . . . . . . . . . . . . . . . . . . . . . . . Max Security . | . . . . . . . . . . . . . . . . . . . . . . . . . . . . . Peak Influence 963 | . 243 216 . 34 401 497 241 656 344 963 505 650 340 20 38 513 268 924 485 152 247 . . 34 221 118 339 231 Initial 505 | . . 92 . . . 150 241 128 344 88 505 239 340 13 . . 268 133 485 152 . . . 6 17 111 15 198 Average 199 | . 79 161 . 8 86 391 182 423 168 515 407 462 182 . 2 247 194 548 460 23 63 . . 1 56 27 127 157 Influence Increases 9596 | . 604 314 . 56 929 357 393 638 409 885 147 531 3 28 64 573 363 891 . 12 463 93 . 74 458 202 923 186 Destroy 0b10 Robot/C 5880 | . 360 220 . 40 580 240 220 440 240 480 100 360 . 20 40 340 240 460 . . 340 60 . 20 300 100 540 140 Destroy 0b10 Robot/NC 60 | . 10 5 . . 20 . . . 10 . . . . . . . . . . . . . . . . . 10 5 Destroy Leader 1010 | . 92 40 . 10 182 10 80 30 82 30 30 10 . . . 30 50 50 . . 50 . . 10 80 20 102 22 Allied During Kill 156 | . . . . 6 14 . 1 36 8 34 . 27 . . 1 . . 14 . . . 3 . 4 8 . . . Successful Hack 143 | . 20 . . . 20 14 5 . . 14 . 14 . . . . . 23 . . . . . . . 22 7 4 Select Force Hacks 60 | . 60 . . . . . . . . . . . . . . . . . . . . . . . . . . . Disable Machine 195 | . . 15 . . 30 . 15 30 15 . . . . . 15 15 15 15 . . 15 . . . . . 15 . Anti-Garrison Action 650 | . . . . . . 50 . 50 . 200 . . . . . 100 . 250 . . . . . . . . . . Destroy Structure 902 | . 2 19 . . 8 28 27 52 9 67 2 45 3 8 8 43 58 79 . 12 58 . . 40 40 60 219 15 Lose Combat Pursuer 540 | . 60 15 . . 75 15 45 . 45 60 15 75 . . . 45 . . . . . 30 . . 30 . 30 . Influence Decreases 9596 | . 367 399 152 56 698 91 692 180 938 49 768 223 614 67 64 60 685 158 489 447 220 311 16 49 279 389 639 496 Entered New Map 3318 | . . 145 152 . . 81 256 70 312 39 458 103 310 26 . . 245 58 439 283 . 90 6 3 17 102 11 112 Time Decay 5075 | . 307 254 . 44 463 . 416 . 586 . 270 . 294 41 44 . 440 . 50 104 210 221 10 46 232 240 573 230 Lost Part 502 | . 60 . . 12 50 10 . 10 . 10 40 60 . . . 20 . 10 . . 10 . . . 30 3 23 154 Lost Ally 551 | . . . . . 35 . 20 100 40 . . 60 10 . 20 40 . 90 . 60 . . . . . 44 32 . Purge Threat 150 | . . . . . 150 . . . . . . . . . . . . . . . . . . . . . . . Squads Dispatched 41 | . 6 . . 1 3 . 1 . 6 . 1 . 1 . 1 . 2 . . . 3 . . 1 3 4 7 1 Investigation 7 | . 5 . . . . . . . . . . . . . . . . . . . 1 . . . . . 1 . Extermination 20 | . . . . . . . . . 4 . 1 . . . 1 . 1 . . . 2 . . 1 1 2 6 1 Reinforcement 13 | . 1 . . . 3 . 1 . 2 . . . 1 . . . 1 . . . . . . . 2 2 . . Assault 1 | . . . . 1 . . . . . . . . . . . . . . . . . . . . . . . . Garrison . | . . . . . . . . . . . . . . . . . . . . . . . . . . . . . Intercept . | . . . . . . . . . . . . . . . . . . . . . . . . . . . . . Searches Triggered . | . . . . . . . . . . . . . . . . . . . . . . . . . . . . . Construction Impeded . | . . . . . . . . . . . . . . . . . . . . . . . . . . . . . Haulers Reinforced . | . . . . . . . . . . . . . . . . . . . . . . . . . . . . . Active Scanning Responses . | . . . . . . . . . . . . . . . . . . . . . . . . . . . . . Cargo Convoy Interrupts . | . . . . . . . . . . . . . . . . . . . . . . . . . . . . . Stealth | -11 -10 -10 -10 -9 -8 -8 -8 -8 -7 -7 -7 -7 -6 -6 -6 -6 -5 -5 -4 -4 -4 -4 -4 -3 -3 -2 -1 -1 --------- Run | Yrd Mat Min Exi Min Mat Gar Mat Gar Fac Gar Fac Gar Fac Was Fac Gar Fac Gar Fac Was Fac Upp Upp Res Arm Res Acc Com Distress Signals 14 | . 2 . . . 2 . 3 3 . . . . . . . . 1 . . . . . . 1 1 . . 1 Communications Jammed . | . . . . . . . . . . . . . . . . . . . . . . . . . . . . . Distress Signals . | . . . . . . . . . . . . . . . . . . . . . . . . . . . . . Times Spotted 404 | . 33 11 . 2 42 13 25 22 16 18 8 18 1 6 2 21 15 26 . 6 19 6 . 7 18 10 47 12 Peak Tracking Total 8 | . 5 3 . 2 6 4 7 6 4 8 3 3 1 2 1 6 6 4 . 5 5 3 . 4 4 5 6 4 Tactical Retreats 30 | . 2 1 . . 3 1 3 . 2 1 2 2 . . . 2 1 . . . . 1 . 1 2 . 6 . ECM-based Alert Blocks 15 | . . . . . . . . . . . 2 . . . . . 1 . . . . . . 1 . . 11 . Traps | -11 -10 -10 -10 -9 -8 -8 -8 -8 -7 -7 -7 -7 -6 -6 -6 -6 -5 -5 -4 -4 -4 -4 -4 -3 -3 -2 -1 -1 ------- Run | Yrd Mat Min Exi Min Mat Gar Mat Gar Fac Gar Fac Gar Fac Was Fac Gar Fac Gar Fac Was Fac Upp Upp Res Arm Res Acc Com Traps Triggered 23 | . 2 . . . 2 2 . 4 . 4 2 1 2 . . . . . 1 . 3 . . . . . . . Indirectly . | . . . . . . . . . . . . . . . . . . . . . . . . . . . . . Trap Hack Attempts . | . . . . . . . . . . . . . . . . . . . . . . . . . . . . . Triggered . | . . . . . . . . . . . . . . . . . . . . . . . . . . . . . Disarmed . | . . . . . . . . . . . . . . . . . . . . . . . . . . . . . Reprogrammed . | . . . . . . . . . . . . . . . . . . . . . . . . . . . . . Reused . | . . . . . . . . . . . . . . . . . . . . . . . . . . . . . Traps Extracted . | . . . . . . . . . . . . . . . . . . . . . . . . . . . . . Installed . | . . . . . . . . . . . . . . . . . . . . . . . . . . . . . Triggered . | . . . . . . . . . . . . . . . . . . . . . . . . . . . . . Machines | -11 -10 -10 -10 -9 -8 -8 -8 -8 -7 -7 -7 -7 -6 -6 -6 -6 -5 -5 -4 -4 -4 -4 -4 -3 -3 -2 -1 -1 ---------- Run | Yrd Mat Min Exi Min Mat Gar Mat Gar Fac Gar Fac Gar Fac Was Fac Gar Fac Gar Fac Was Fac Upp Upp Res Arm Res Acc Com Machines Disabled 20 | . . 1 . . 2 1 1 3 1 2 . . . . 1 1 1 4 . . 1 . . . . . 1 . Max in Single Turn 2 | . . 1 . . 1 1 1 2 1 1 . . . . . 1 1 1 . . 1 . . . . . 1 . Garrison Access 3 | . . . . . . . . . . . . . . . . . . . . . . . . 2 . . 1 . Garrison Relay 7 | . . . . . . 1 . 1 . 2 . . . . . . . 3 . . . . . . . . . . Energy Cycler 1 | . . . . . . . . . . . . . . . . . . . . . . . . . . . 1 . Machines Repaired . | . . . . . . . . . . . . . . . . . . . . . . . . . . . . . Machines Dismantled . | . . . . . . . . . . . . . . . . . . . . . . . . . . . . . Machines Sabotaged . | . . . . . . . . . . . . . . . . . . . . . . . . . . . . . Overloaded Fab Kills . | . . . . . . . . . . . . . . . . . . . . . . . . . . . . . Hacking | -11 -10 -10 -10 -9 -8 -8 -8 -8 -7 -7 -7 -7 -6 -6 -6 -6 -5 -5 -4 -4 -4 -4 -4 -3 -3 -2 -1 -1 --------- Run | Yrd Mat Min Exi Min Mat Gar Mat Gar Fac Gar Fac Gar Fac Was Fac Gar Fac Gar Fac Was Fac Upp Upp Res Arm Res Acc Com Machines Accessed 59 | . 5 . 2 . 13 1 6 . 4 2 2 1 1 . 2 . 1 2 1 . 2 . . 4 . 5 4 1 Terminals 42 | . 3 . . . 10 1 5 . 3 2 1 1 1 . 1 . . 2 1 . 1 . . 2 . 4 3 1 Fabricators . | . . . . . . . . . . . . . . . . . . . . . . . . . . . . . Repair Stations . | . . . . . . . . . . . . . . . . . . . . . . . . . . . . . Recycling Units 4 | . 2 . . . 1 . . . . . . . . . . . . . . . 1 . . . . . . . Scanalyzers 2 | . . . . . 1 . . . . . . . . . . . . . . . . . . . . 1 . . Garrison Access 9 | . . . . . 1 . 1 . 1 . 1 . . . 1 . 1 . . . . . . 2 . . 1 . Total Hacks 98 | . 14 . 2 . 24 2 9 . 7 2 2 1 2 . 3 . 1 3 1 . 2 . . 5 . 10 7 1 Successful 36 | . 6 . 2 . 9 1 2 . 1 1 1 1 1 . 1 . 1 2 . . . . . 2 . 2 2 1 Failed 60 | . 8 . . . 14 1 7 . 6 1 1 . 1 . 2 . . 1 1 . 2 . . 3 . 7 5 . Catastrophic 21 | . . . . . 7 . 2 . 2 1 . . 1 . 1 . . . 1 . . . . 2 . 2 2 . Database Lockouts 2 | . . . . . 1 . . . . . . . . . . . . . . . . . . . . 1 . . Manual 57 | . 14 . 1 . 16 . 7 . 3 . . . 1 . 2 . . . . . 1 . . 3 . 6 3 . Terminals 76 | . 10 . . . 20 2 8 . 6 2 1 1 2 . 2 . . 3 1 . 1 . . 3 . 7 6 1 Fabricators . | . . . . . . . . . . . . . . . . . . . . . . . . . . . . . Repair Stations . | . . . . . . . . . . . . . . . . . . . . . . . . . . . . . Recycling Units 7 | . 4 . . . 2 . . . . . . . . . . . . . . . 1 . . . . . . . Scanalyzers 4 | . . . . . 1 . . . . . . . . . . . . . . . . . . . . 3 . . Garrison Access 9 | . . . . . 1 . 1 . 1 . 1 . . . 1 . 1 . . . . . . 2 . . 1 . Terminal Hacks 18 | . 2 . 2 . 6 1 . . . 1 . 1 1 . . . . 2 . . . . . . . . 1 1 Record 2 | . . . 1 . 1 . . . . . . . . . . . . . . . . . . . . . . . Robot Analysis 6 | . 1 . . . 4 . . . . . . . 1 . . . . . . . . . . . . . . . Open Door 3 | . . . . . . . . . . . . . . . . . . 1 . . . . . . . . 1 1 Emergency Access Points 2 | . . . . . . . . . . 1 . 1 . . . . . . . . . . . . . . . . Recycling Unit Index 1 | . 1 . . . . . . . . . . . . . . . . . . . . . . . . . . . Unreport Threat 1 | . . . . . 1 . . . . . . . . . . . . . . . . . . . . . . . Garrison Registry 1 | . . . . . . 1 . . . . . . . . . . . . . . . . . . . . . . Security Stations 1 | . . . . . . . . . . . . . . . . . . 1 . . . . . . . . . . Proto ID Catalog 1 | . . . 1 . . . . . . . . . . . . . . . . . . . . . . . . . Fabricator Hacks . | . . . . . . . . . . . . . . . . . . . . . . . . . . . . . Repair Station Hacks . | . . . . . . . . . . . . . . . . . . . . . . . . . . . . . Recycling Unit Hacks 1 | . . . . . 1 . . . . . . . . . . . . . . . . . . . . . . . Retrieve Components 1 | . . . . . 1 . . . . . . . . . . . . . . . . . . . . . . . Scanalyzer 1 | . . . . . . . . . . . . . . . . . . . . . . . . . . 1 . . Retrieve Study 1 | . . . . . . . . . . . . . . . . . . . . . . . . . . 1 . . Garrison Access Hacks 9 | . . . . . 1 . 1 . 1 . 1 . . . 1 . 1 . . . . . . 2 . . 1 . Unlock Access 6 | . . . . . 1 . 1 . 1 . 1 . . . 1 . 1 . . . . . . . . . . . Seal Access 3 | . . . . . . . . . . . . . . . . . . . . . . . . 2 . . 1 . Unauthorized Hacks 7 | . 4 . . . 1 . 1 . . . . . . . . . . . . . . . . . . 1 . . Terminals 5 | . 2 . . . 1 . 1 . . . . . . . . . . . . . . . . . . 1 . . Botnet 5 | . 2 . . . 1 . 1 . . . . . . . . . . . . . . . . . . 1 . . Fabricators . | . . . . . . . . . . . . . . . . . . . . . . . . . . . . . Repair Stations . | . . . . . . . . . . . . . . . . . . . . . . . . . . . . . Recycling Units 2 | . 2 . . . . . . . . . . . . . . . . . . . . . . . . . . . Tunnel 2 | . 2 . . . . . . . . . . . . . . . . . . . . . . . . . . . Scanalyzers . | . . . . . . . . . . . . . . . . . . . . . . . . . . . . . Garrison Access . | . . . . . . . . . . . . . . . . . . . . . . . . . . . . . Data Cores Recovered . | . . . . . . . . . . . . . . . . . . . . . . . . . . . . . Used . | . . . . . . . . . . . . . . . . . . . . . . . . . . . . . Hacking Detections 42 | . 3 . . . 11 1 5 . 3 2 2 . 1 . 1 . . 2 1 . 1 . . 2 . 5 2 . Full Trace Events 2 | . 1 . . . . . . . . . . . . . . . . . . . . . . . . . 1 . Feedback Events . | . . . . . . . . . . . . . . . . . . . . . . . . . . . . . Feedback Blocked . | . . . . . . . . . . . . . . . . . . . . . . . . . . . . . Robot Schematics Acquired . | . . . . . . . . . . . . . . . . . . . . . . . . . . . . . Robots Built . | . . . . . . . . . . . . . . . . . . . . . . . . . . . . . Authchips . | . . . . . . . . . . . . . . . . . . . . . . . . . . . . . Time . | . . . . . . . . . . . . . . . . . . . . . . . . . . . . . Total Robot Build Rating . | . . . . . . . . . . . . . . . . . . . . . . . . . . . . . Part Schematics Acquired . | . . . . . . . . . . . . . . . . . . . . . . . . . . . . . Parts Built . | . . . . . . . . . . . . . . . . . . . . . . . . . . . . . Authchips . | . . . . . . . . . . . . . . . . . . . . . . . . . . . . . Time . | . . . . . . . . . . . . . . . . . . . . . . . . . . . . . Total Part Build Rating . | . . . . . . . . . . . . . . . . . . . . . . . . . . . . . Part Studies Acquired 1 | . . . . . . . . . . . . . . . . . . . . . . . . . . 1 . . Parts Repaired . | . . . . . . . . . . . . . . . . . . . . . . . . . . . . . Time . | . . . . . . . . . . . . . . . . . . . . . . . . . . . . . Parts Recycled . | . . . . . . . . . . . . . . . . . . . . . . . . . . . . . Recycled Matter . | . . . . . . . . . . . . . . . . . . . . . . . . . . . . . Retrieved Matter . | . . . . . . . . . . . . . . . . . . . . . . . . . . . . . Retrieved Components 10 | . . . . . 10 . . . . . . . . . . . . . . . . . . . . . . . Parts Scanalyzed . | . . . . . . . . . . . . . . . . . . . . . . . . . . . . . Part Schematics Acquired . | . . . . . . . . . . . . . . . . . . . . . . . . . . . . . Parts Damaged . | . . . . . . . . . . . . . . . . . . . . . . . . . . . . . Bothacking | -11 -10 -10 -10 -9 -8 -8 -8 -8 -7 -7 -7 -7 -6 -6 -6 -6 -5 -5 -4 -4 -4 -4 -4 -3 -3 -2 -1 -1 ------------ Run | Yrd Mat Min Exi Min Mat Gar Mat Gar Fac Gar Fac Gar Fac Was Fac Gar Fac Gar Fac Was Fac Upp Upp Res Arm Res Acc Com Used RIF Installer 6 | . . . . . . 1 . 1 . 1 . 1 . . . 1 . 1 . . . . . . . . . . Zone Cloak 1 | . . . . . . . . . . . . 1 . . . . . . . . . . . . . . . . Watcher Feeds 1 | . . . . . . . . 1 . . . . . . . . . . . . . . . . . . . . Patrol Navigation 1 | . . . . . . . . . . 1 . . . . . . . . . . . . . . . . . . Autooverride 1 | . . . . . . . . . . . . . . . . . . 1 . . . . . . . . . . Autoassimilate 1 | . . . . . . . . . . . . . . . . 1 . . . . . . . . . . . . Robots Hacked 50 | . . . . . . . 1 . 3 1 1 4 1 6 1 2 2 8 1 6 1 1 . 1 3 3 4 . Non-combat 7 | . . . . . . . . . 2 . 1 . 1 . . . 1 . 1 . . . . . . 1 . . Combat 43 | . . . . . . . 1 . 1 1 . 4 . 6 1 2 1 8 . 6 1 1 . 1 3 2 4 . Autooverrided 3 | . . . . . . . . . . . . . . . . . . . . . . . . . . 1 2 . Autoassimilated 5 | . . . . . . . . . . . . . . . . . . 3 . . . . . . 1 . 1 . Robot Hacks Applied 44 | . . . . . . . 2 . 4 1 1 4 1 6 1 2 2 5 1 6 1 1 . 1 2 2 1 . parse_system 1 | . . . . . . . . . 1 . . . . . . . . . . . . . . . . . . . find_chute 5 | . . . . . . . . . 3 . . . 1 . . . . . 1 . . . . . . . . . ignore_targets 12 | . . . . . . . . . . . . . . 6 . . . . . 6 . . . . . . . . find_garrison 1 | . . . . . . . 1 . . . . . . . . . . . . . . . . . . . . . disable_weapons 1 | . . . . . . . . . . . . . . . . . 1 . . . . . . . . . . . go_dormant 1 | . . . . . . . . . . . . . . . . . . . . . . . . . . . 1 . overwrite_iff 14 | . . . . . . . 1 . . 1 . 4 . . . 2 . 3 . . 1 1 . . . 1 . . formatsys_low 2 | . . . . . . . . . . . 1 . . . . . 1 . . . . . . . . . . . formatsys_high 7 | . . . . . . . . . . . . . . . 1 . . 2 . . . . . 1 2 1 . . Relay Couplers Released 32 | . . . . . . 3 . 5 . 8 . 3 . . . . . 13 . . . . . . . . . . Machine Destruction 29 | . . . . . . 3 . 5 . 8 . . . . . . . 13 . . . . . . . . . . Programmers 3 | . . . . . . . . . . . . 3 . . . . . . . . . . . . . . . . Attached 16 | . . . . . . . 1 . . 1 1 3 . 1 1 1 . 2 . . 2 1 . 1 . . 1 . Fabnet Peak Effective % . | . . . . . . . . . . . . . . . . . . . . . . . . . . . . . Robots Rewired 7 | . . . . . . . . 7 . . . . . . . . . . . . . . . . . . . . Allies Hacked . | . . . . . . . . . . . . . . . . . . . . . . . . . . . . . Hacks Repelled . | . . . . . . . . . . . . . . . . . . . . . . . . . . . . . Allies | -11 -10 -10 -10 -9 -8 -8 -8 -8 -7 -7 -7 -7 -6 -6 -6 -6 -5 -5 -4 -4 -4 -4 -4 -3 -3 -2 -1 -1 -------- Run | Yrd Mat Min Exi Min Mat Gar Mat Gar Fac Gar Fac Gar Fac Was Fac Gar Fac Gar Fac Was Fac Upp Upp Res Arm Res Acc Com Total Allies 49 | . . . . 3 . . 1 7 . 3 1 6 . . 1 2 1 11 . 1 1 1 . 1 3 3 3 . Largest Group 4 | . . . . 3 3 . 1 4 2 2 1 3 1 . 1 1 1 4 4 2 1 1 . 1 2 3 1 . Highest-Rated Group 211 | . . . . 76 76 . 5 72 48 160 23 180 23 . 85 32 14 211 211 111 56 58 . 64 128 192 58 . Highest-Rated Ally 95 | . . . . 31 31 . 5 24 24 80 23 95 23 . 85 32 14 62 62 62 56 58 . 64 64 69 58 . Total Orders 28 | . . . . . . . . . 2 . 1 9 . . . . 4 11 . . . . . . . 1 . . STAY 11 | . . . . . . . . . 1 . . 3 . . . . 1 5 . . . . . . . 1 . . FOLLOW 6 | . . . . . . . . . 1 . . 3 . . . . 1 1 . . . . . . . . . . AID 11 | . . . . . . . . . . . 1 3 . . . . 2 5 . . . . . . . . . . Ally Attacks 242 | . . . . 3 21 . 3 37 8 33 . 33 . . 8 2 . 29 . 31 3 4 . 3 10 8 6 . Total Damage 6469 | . . . . 41 273 . 17 522 167 1129 . 896 . . 443 85 . 616 . 969 63 144 . 164 414 306 220 . Kills 40 | . . . . 2 2 . . 7 1 11 . 9 . . 1 . . 3 . 1 . 1 . 1 . 1 . . Allies Corrupted . | . . . . . . . . . . . . . . . . . . . . . . . . . . . . . Allies Melted 2 | . . . . . . . . . . . . 1 . . . . . 1 . . . . . . . . . . Intel | -11 -10 -10 -10 -9 -8 -8 -8 -8 -7 -7 -7 -7 -6 -6 -6 -6 -5 -5 -4 -4 -4 -4 -4 -3 -3 -2 -1 -1 ------- Run | Yrd Mat Min Exi Min Mat Gar Mat Gar Fac Gar Fac Gar Fac Was Fac Gar Fac Gar Fac Was Fac Upp Upp Res Arm Res Acc Com Active Infowar (turns) 7648 | . . . . . . . . . 698 1 11 . 628 . 515 833 805 127 113 . 495 . . 554 7 771 1998 92 Terrain 2640 | . . . . . . . . . . . . . . . . . . . . . . . . . . 550 1998 92 Traps 5486 | . . . . . . . . . 698 . . . 628 . 515 833 782 127 113 . 495 . . 519 7 769 . . Spoofing 1 | . . . . . . . . . . 1 . . . . . . . . . . . . . . . . . . ECM 280 | . . . . . . . . . . . 11 . . . . . 23 . . . . . . 35 . . 211 . Robot Analysis Total 6 | . 1 . . . 4 . . . . . . . 1 . . . . . . . . . . . . . . . Derelict Logs Recovered 3 | . . 1 . . . . . . . . . . . . . . . . . . . 2 . . . . . . Drone Launches . | . . . . . . . . . . . . . . . . . . . . . . . . . . . . . Drone Recoveries . | . . . . . . . . . . . . . . . . . . . . . . . . . . . . . Exploration | -11 -10 -10 -10 -9 -8 -8 -8 -8 -7 -7 -7 -7 -6 -6 -6 -6 -5 -5 -4 -4 -4 -4 -4 -3 -3 -2 -1 -1 ------------- Run | Yrd Mat Min Exi Min Mat Gar Mat Gar Fac Gar Fac Gar Fac Was Fac Gar Fac Gar Fac Was Fac Upp Upp Res Arm Res Acc Com Turns Passed 26966 | 66 1150 551 237 171 2296 769 1018 879 1838 1607 580 1101 659 1242 646 943 1098 1608 115 666 1270 515 26 1037 694 902 2787 495 Spaces Moved 11846 | 36 445 433 215 105 1075 275 392 266 670 621 256 510 377 513 251 277 506 776 68 274 642 295 17 430 193 336 1345 247 Core 75 | 2 . . . . . . . . . . . . . . . . . . . . . . . . . . . 73 Treads 8582 | 34 345 . . . 209 275 152 266 670 621 121 . . 305 251 277 506 776 68 274 642 295 17 430 193 336 1345 174 Legs . | . . . . . . . . . . . . . . . . . . . . . . . . . . . . . Wheels 3189 | . 100 433 215 105 866 . 240 . . . 135 510 377 208 . . . . . . . . . . . . . . Hover . | . . . . . . . . . . . . . . . . . . . . . . . . . . . . . Flight . | . . . . . . . . . . . . . . . . . . . . . . . . . . . . . Fastest Speed 50 | 50 110 110 110 105 105 245 155 225 225 228 150 150 150 150 160 160 160 160 160 160 160 160 160 160 160 166 155 50 Average Speed 174 | 153 201 110 110 107 154 245 185 230 226 229 188 156 153 199 232 238 160 160 160 163 160 160 160 160 160 166 162 126 Slowest Speed 400 | 160 240 110 110 110 245 245 245 231 228 232 232 225 165 240 240 240 160 160 160 240 160 160 160 160 166 166 260 400 Overloaded Moves . | . . . . . . . . . . . . . . . . . . . . . . . . . . . . . Propulsion Burnouts . | . . . . . . . . . . . . . . . . . . . . . . . . . . . . . Robots Hopped . | . . . . . . . . . . . . . . . . . . . . . . . . . . . . . Potential Cave-ins 2 | . . . . . . . . . . . . . . . . . . . . . . . . . . 2 . . Cave-ins Triggered . | . . . . . . . . . . . . . . . . . . . . . . . . . . . . . Exploration Rate (%) 38 | 3 69 92 61 35 88 40 43 35 19 78 10 41 14 87 10 31 13 69 3 87 25 55 7 21 18 19 25 11 Regions Visited 28 Branch Regions 7 Pre-discovered Areas 4 | . 2 . 1 . . . . . . . . . . . . . . . . . . 1 . . . . . . Known Exits Taken 6 | . . . . . 1 . 1 . 1 . 1 . . . 1 . 1 . . . . . . . . . . . Unknown Exits Taken 12 | 1 1 1 1 1 . . . . . . . . . . . . . . . . 1 1 1 1 1 1 1 . Scrap Searched 3 | . . 1 . . . . . . . . . . . . . . . . . . . 2 . . . . . . Spaces Dug 156 | . . . . . . . 14 6 7 1 . 3 3 . 5 4 11 2 . . 11 1 . 23 3 23 38 1 Terrain Destroyed 466 | . . 25 . . 5 14 25 44 7 52 2 3 3 8 6 21 32 37 . 7 28 2 . 23 20 24 71 7 Melee 6 | . . . . . . . 1 2 3 . . . . . . . . . . . . . . . . . . . Projectile 268 | . . . . . . . 24 6 4 5 2 3 3 8 6 5 20 17 . 7 28 2 . 23 20 24 54 7 AOE 192 | . . 25 . . 5 14 . 36 . 47 . . . . . 16 12 20 . . . . . . . . 17 . Terrain Rammed . | . . . . . . . . . . . . . . . . . . . . . . . . . . . . . Walls Destroyed . | . . . . . . . . . . . . . . . . . . . . . . . . . . . . . Machines Disabled . | . . . . . . . . . . . . . . . . . . . . . . . . . . . . . Actions | -11 -10 -10 -10 -9 -8 -8 -8 -8 -7 -7 -7 -7 -6 -6 -6 -6 -5 -5 -4 -4 -4 -4 -4 -3 -3 -2 -1 -1 --------- Run | Yrd Mat Min Exi Min Mat Gar Mat Gar Fac Gar Fac Gar Fac Was Fac Gar Fac Gar Fac Was Fac Upp Upp Res Arm Res Acc Com Total 16694 | 44 568 471 215 156 1580 330 619 456 911 755 319 741 455 609 307 453 738 1060 74 413 819 324 16 751 487 647 1951 425 Wait 3000 | . 33 13 . 44 331 14 149 68 163 60 25 156 51 13 38 98 155 192 . 63 112 20 . 288 206 246 388 74 Move 11824 | 35 444 432 214 104 1075 274 392 265 669 620 256 509 377 512 250 276 506 775 68 273 641 294 16 429 192 335 1344 247 Hop . | . . . . . . . . . . . . . . . . . . . . . . . . . . . . . Pick Up 181 | 3 12 4 1 1 39 5 8 7 5 9 4 6 3 1 4 6 7 11 1 5 6 . . 1 7 4 18 3 Fast Attach 76 | 6 2 . . . 11 . 2 3 2 2 2 1 2 3 . . . 3 . 6 . . . . 8 2 7 14 Attach 86 | . 6 . . 3 8 1 1 3 3 1 4 7 1 2 1 2 2 2 2 1 3 . . 3 5 5 9 11 Detach 17 | . . . . . 4 . . . . . . . . 2 . . . . . 1 . . . . 2 3 2 3 Swap 210 | . 2 3 . . 15 7 15 11 18 8 8 14 3 3 3 15 18 17 1 5 9 2 . 4 9 2 16 2 Drop 179 | . 1 . . . 32 6 11 7 6 13 3 5 4 8 5 2 7 12 1 14 6 . . . 12 4 19 1 Fire 1036 | . 68 19 . 4 65 23 37 36 39 33 17 43 6 65 6 52 43 48 1 45 42 8 . 26 46 46 148 70 Melee 15 | . . . . . . . 4 5 6 . . . . . . . . . . . . . . . . . . . Ram . | . . . . . . . . . . . . . . . . . . . . . . . . . . . . . Kick . | . . . . . . . . . . . . . . . . . . . . . . . . . . . . . Crush 2 | . . . . . . . . . . . . . . . . 2 . . . . . . . . . . . . Escape Stasis 22 | . . . . . . . . 6 . 8 . . 8 . . . . . . . . . . . . . . . Rewire 46 | . . . . . . . . 45 . 1 . . . . . . . . . . . . . . . . . . Trap . | . . . . . . . . . . . . . . . . . . . . . . . . . . . . . Miscellaneous . | . . . . . . . . . . . . . . . . . . . . . . . . . . . . . Route ------- -11/Scrapyard -10/Materials (discovered 5 exits: *Mat x3 / [*Min] / [*Sub]) -10/Mines (discovered 3 exits: *Mat x2 / *Exi) -10/Exiles -9/Mines -8/Materials (discovered 4 exits: *Fac x3 / Gar) -8/Garrison (discovered 3 exits: *Mat x3) -8/Materials -8/Garrison -7/Factory -7/Garrison (discovered 3 exits: *Fac x3) -7/Factory -7/Garrison -6/Factory -6/Waste -6/Factory -6/Garrison -5/Factory -5/Garrison (discovered 2 exits: *Fac x2) -4/Factory -4/Waste -4/Factory -4/Upper Caves -4/Upper Caves -3/Research (discovered 2 exits: [*Arm] / *Tes) -3/Armory -2/Research -1/Access -1/Command History --------- Turn | Location | Event 7 | -11/Scrapyard | Discovered new exit (range 15) 67 | -11/Scrapyard | Entered Materials 312 | -10/Materials | Build established: Mutant 343 | -10/Materials | Discovered new exit (range 15) 533 | -10/Materials | Discovered new exit (range 16) 865 | -10/Materials | Discovered new exit (range 9) 903 | -10/Materials | Discovered new exit (range 15) 1015 | -10/Materials | Discovered new exit (range 5) 1217 | -10/Materials | Entered Mines 1226 | -10/Mines | Core integrity fell below 50% 1392 | -10/Mines | Discovered new exit (range 8) 1524 | -10/Mines | Identified exit to Materials 1764 | -10/Mines | Deemed a non-threat by the Exiles lab entrance 1764 | -10/Mines | Discovered new exit (range 5) 1768 | -10/Mines | Entered Exiles 1795 | -10/Exiles | Met 8R-AWN 1814 | -10/Exiles | Met EX-HEX 1845 | -10/Exiles | Met EX-BIN 1861 | -10/Exiles | Aligned with FarCom system 1862 | -10/Exiles | Given EX-Vault access code 1887 | -10/Exiles | Opened EX-Vault 1895 | -10/Exiles | Found Chronowheel 1917 | -10/Exiles | Warned to stay clear of 0b10 Research branches 1949 | -10/Exiles | Met EX-DEC 1958 | -10/Exiles | Learned location of Zion (-7) 1993 | -10/Exiles | Discovered new exit (range 14) 2005 | -10/Exiles | Left Exiles lab with Chronowheel 2005 | -10/Exiles | Entered Mines 2097 | -9/Mines | Lost 3 parts (1p1n1w) 2151 | -9/Mines | Discovered new exit (range 14) 2156 | -9/Mines | Met a Derelict testing a Signal Generator 2176 | -9/Mines | Entered Materials 2176 | -8/Materials | Accompanied by 3 allies 2176 | -8/Materials | Evolved 4 slots: Propulsion x2, Utility x1, Weapon x1 2181 | -8/Materials | Led the pair of lost Derelicts to an unsafe place 2471 | -8/Materials | Build established: Skirmisher 2795 | -8/Materials | Build established: Scavenger-Skirmisher 2814 | -8/Materials | Discovered new exit (range 3) 2892 | -8/Materials | Lost 3 parts (2n1w) 3087 | -8/Materials | Central database locked down 3566 | -8/Materials | Discovered new exit (range 3) 4303 | -8/Materials | Discovered new exit (range 16) 4472 | -8/Materials | Identified exit to Garrison 4472 | -8/Materials | Entered Garrison 4518 | -8/Garrison | Triggered checkpoint 4553 | -8/Garrison | Garrison Relay disabled 4803 | -8/Garrison | Installed Relay Interface Framework 4964 | -8/Garrison | Discovered new exit (range 12) 5153 | -8/Garrison | Discovered new exit (range 26) 5153 | -8/Garrison | Discovered new exit (range 21) 5153 | -8/Garrison | Discovered new exit (range 73) 5241 | -8/Garrison | Entered Materials 5816 | -8/Materials | Core integrity fell below 50% 6160 | -8/Materials | Build established: Skirmisher 6259 | -8/Materials | Identified exit to Garrison 6259 | -8/Materials | Entered Garrison 6528 | -8/Garrison | Expanded RIF knowledge: Watcher Feeds 6599 | -8/Garrison | Triggered checkpoint 6763 | -8/Garrison | Garrison Relay disabled 6967 | -8/Garrison | Triggered checkpoint 6991 | -8/Garrison | Triggered checkpoint 7109 | -8/Garrison | Discovered new exit (range 10) 7138 | -8/Garrison | Entered Factory 7138 | -7/Factory | Accompanied by 2 allies 7138 | -7/Factory | Evolved 2 slots: Power x1, Utility x1 7563 | -7/Factory | Build established: Tank 8189 | -7/Factory | Build established: Skirmisher 8967 | -7/Factory | Identified exit to Garrison 8976 | -7/Factory | Entered Garrison 9014 | -7/Garrison | Triggered checkpoint 9054 | -7/Garrison | Garrison Relay disabled 9302 | -7/Garrison | Found embedded Infiltrators 9328 | -7/Garrison | Build established: Bothacker-Skirmisher 9422 | -7/Garrison | Triggered checkpoint 9545 | -7/Garrison | Discovered new exit (range 8) 9646 | -7/Garrison | Triggered checkpoint 9792 | -7/Garrison | Triggered checkpoint 9818 | -7/Garrison | Triggered checkpoint 9915 | -7/Garrison | Discovered new exit (range 10) 9950 | -7/Garrison | Triggered checkpoint 10052 | -7/Garrison | Garrison Relay disabled 10173 | -7/Garrison | P-60 Hacker assimilated allied IK-6MG(x) 10448 | -7/Garrison | Triggered checkpoint 10476 | -7/Garrison | Discovered new exit (range 13) 10551 | -7/Garrison | Expanded RIF knowledge: Patrol Navigation 10583 | -7/Garrison | Entered Factory 11163 | -7/Factory | Identified exit to Garrison 11163 | -7/Factory | Entered Garrison 11163 | -7/Garrison | Accompanied by 1 ally 11497 | -7/Garrison | Found embedded Infiltrators 11598 | -7/Garrison | P-70 Sage assimilated allied E6-EO5(x) 11652 | -7/Garrison | Lost 4 parts (1p1n1u1w) 11738 | -7/Garrison | Triggered checkpoint 11748 | -7/Garrison | Triggered checkpoint 11846 | -7/Garrison | Expanded RIF knowledge: Zone Cloak 11875 | -7/Garrison | Discovered new exit (range 8) 11909 | -7/Garrison | Triggered checkpoint 12264 | -7/Garrison | Entered Factory 12264 | -6/Factory | Accompanied by 1 ally 12264 | -6/Factory | Evolved 2 slots: Utility x2 12923 | -6/Factory | Sucked down chute 12923 | -6/Factory | Entered Waste 12935 | -6/Waste | Spotted C-40 Crusher 12960 | -6/Waste | Spotted C-40 Crusher 12978 | -6/Waste | Spotted C-40 Crusher 12983 | -6/Waste | Spotted C-40 Crusher 12999 | -6/Waste | Spotted C-40 Crusher 13031 | -6/Waste | Spotted C-40 Crusher 13168 | -6/Waste | Destroyed C-40 Crusher 13384 | -6/Waste | Destroyed C-40 Crusher 13400 | -6/Waste | Destroyed C-40 Crusher 13458 | -6/Waste | Destroyed C-40 Crusher 13532 | -6/Waste | Destroyed C-40 Crusher 13545 | -6/Waste | Destroyed C-40 Crusher 13695 | -6/Waste | Discovered new exit (range 13) 13711 | -6/Waste | Build established: Bothacker-Tank 14165 | -6/Waste | Entered Factory 14678 | -6/Factory | Spotted B-75 Beast 14682 | -6/Factory | Assimilated Beast 5a with formatsys_high 14802 | -6/Factory | Identified exit to Garrison 14811 | -6/Factory | Entered Garrison 14989 | -6/Garrison | Triggered checkpoint 15193 | -6/Garrison | Expanded RIF knowledge: Autoassimilate 15355 | -6/Garrison | Triggered checkpoint 15429 | -6/Garrison | Assembled breached garrison interior 15662 | -6/Garrison | Build established: Scavenger-Tank 15723 | -6/Garrison | Discovered new exit (range 13) 15754 | -6/Garrison | Entered Factory 15754 | -5/Factory | Evolved 2 slots: Propulsion x2 16852 | -5/Factory | Identified exit to Garrison 16852 | -5/Factory | Entered Garrison 16852 | -5/Garrison | Accompanied by 1 ally 16906 | -5/Garrison | Triggered checkpoint 16936 | -5/Garrison | Garrison Relay disabled 17125 | -5/Garrison | Triggered checkpoint 17184 | -5/Garrison | Spotted B-75 Beast 17203 | -5/Garrison | Destroyed B-75 Beast 17552 | -5/Garrison | Triggered checkpoint 17598 | -5/Garrison | Discovered new exit (range 15) 17648 | -5/Garrison | Triggered checkpoint 17691 | -5/Garrison | Garrison Relay disabled 17812 | -5/Garrison | Triggered checkpoint 17854 | -5/Garrison | Triggered checkpoint 17916 | -5/Garrison | Triggered checkpoint 17926 | -5/Garrison | Spotted B-75 Beast 18022 | -5/Garrison | Build established: Bothacker-Tank 18158 | -5/Garrison | Discovered new exit (range 13) 18206 | -5/Garrison | Triggered checkpoint 18273 | -5/Garrison | Learned Factory security intel 18298 | -5/Garrison | Rescued a captive Derelict 18342 | -5/Garrison | Expanded RIF knowledge: Autooverride 18376 | -5/Garrison | Garrison Relay disabled 18429 | -5/Garrison | Found embedded Infiltrators 18460 | -5/Garrison | Entered Factory 18460 | -4/Factory | Accompanied by 4 allies 18460 | -4/Factory | Evolved 2 slots: Utility x2 18575 | -4/Factory | Manually triggered Chute Trap 18575 | -4/Factory | Sucked down chute 18575 | -4/Factory | Entered Waste 18576 | -4/Waste | Met a frightened Derelict 18620 | -4/Waste | 1 allies followed down the chute 18622 | -4/Waste | Spotted C-40 Crusher 18673 | -4/Waste | Spotted C-40 Crusher 18673 | -4/Waste | Spotted C-40 Crusher 18673 | -4/Waste | Spotted C-40 Crusher 18686 | -4/Waste | Build established: Botlord-Tank 18706 | -4/Waste | Spotted C-40 Crusher 18710 | -4/Waste | Destroyed C-40 Crusher 18720 | -4/Waste | 3 allies followed down the chute 18746 | -4/Waste | Allies destroyed C-40 Crusher 18894 | -4/Waste | Destroyed C-40 Crusher 18907 | -4/Waste | Spotted C-40 Crusher 18957 | -4/Waste | Destroyed C-40 Crusher 19015 | -4/Waste | Destroyed C-40 Crusher 19067 | -4/Waste | Destroyed C-40 Crusher 19136 | -4/Waste | Discovered new exit (range 15) 19241 | -4/Waste | Entered Factory 20035 | -4/Factory | Destroyed 7 combat bots 20378 | -4/Factory | Discovered new exit (range 22) 20511 | -4/Factory | Entered Upper Caves 20993 | -4/Upper Caves | Discovered new exit (range 8) 21010 | -4/Upper Caves | Learned location of Testing (-3) 21018 | -4/Upper Caves | Learned Research emergency access door positions 21026 | -4/Upper Caves | Entered another Upper Caves area 21042 | -4/Upper Caves | Discovered new exit (range 8) 21052 | -4/Upper Caves | Entered Research 21052 | -3/Research | Evolved 2 slots: Power x1, Utility x1 21090 | -3/Research | Discovered new exit (range 22) 21130 | -3/Research | Identified exit to Testing 22048 | -3/Research | Discovered new exit (range 25) 22089 | -3/Research | Entered Armory 22256 | -3/Armory | Found Quantum Capacitor 22389 | -3/Armory | Build established: Bothacker-Tank 22643 | -3/Armory | System corruption reached 10% 22687 | -3/Armory | Spotted B-86 Titan 22701 | -3/Armory | Destroyed B-86 Titan 22765 | -3/Armory | Discovered new exit (range 5) 22783 | -3/Armory | Entered Research 22783 | -2/Research | Accompanied by 2 allies 22783 | -2/Research | Evolved 2 slots: Utility x2 22988 | -2/Research | Central database locked down 23649 | -2/Research | Discovered new exit (range 10) 23685 | -2/Research | Entered Access 23685 | -1/Access | Evolved 2 slots: Utility x2 24582 | -1/Access | Build established: Scavenger-Tank 25897 | -1/Access | Energy Cycler disabled 26016 | -1/Access | Spotted B-99 Colossus 26063 | -1/Access | System corruption reached 10% 26190 | -1/Access | Found Hvy. Reflective Plating 26459 | -1/Access | Discovered new exit (range 8) 26472 | -1/Access | Entered Command 26680 | -1/Command | Spotted M Guard 26683 | -1/Command | Spotted Combat Programmer 26683 | -1/Command | Spotted Combat Programmer 26698 | -1/Command | Spotted M Guard 26707 | -1/Command | Destroyed Combat Programmer 26726 | -1/Command | Destroyed Combat Programmer 26734 | -1/Command | Destroyed M Guard 26746 | -1/Command | Destroyed M Guard 26746 | -1/Command | All MAIN.C guards destroyed 26765 | -1/Command | Found Corrupted Prototype Protection 26775 | -1/Command | Lost 7 parts (1p6u) 26828 | -1/Command | Met MAIN.C 26828 | -1/Command | Released all parts (16) 26865 | -1/Command | Core integrity fell below 50% 26871 | -1/Command | 0b10 Conduit disabled 26886 | -1/Command | Core integrity fell below 20% 26899 | -1/Command | Identified Hvy. Regenerative Plating 26900 | -1/Command | System corruption reached 30% 26947 | -1/Command | Lost 3 parts (1n2u) 26967 | -1/Command | Destroyed by MAIN.C with Heavy Quantum Rifle Last Messages --------------- 26950_ Slug penetrates 0b10 Conduit. 26951_ Acquired Adv. Cooling System. 26952_ Slug penetrates MAIN.C. 26952_ Penetrated by Slug. 26952_ Biometal Heavy Treads destroyed. 26953_ Lyr. Medium Armor Plating destroyed. 26955_ Acquired Adv. Heat Sink. 26956_ System corrupted: Heat flow error (+177). 26956_ Slug penetrates Reinforced Barrier. 26958_ Acquired Adv. Heavy Siege Treads. 26960_ Matter Neutralizer destroyed. 26960_ Adv. Heavy Siege Treads destroyed. 26962_ Slug penetrates Reinforced Barrier. 26962_ Adv. Cooling System destroyed. 26962_ Slug penetrates Reinforced Barrier. 26964_ Adv. Heavy Siege Treads destroyed. 26965_ Slug penetrates Reinforced Barrier. 26965_ Penetrated by Slug. 26965_ Quantum Reactor+ destroyed. 26965_ Adv. Heavy Siege Treads destroyed. Map ----- +----------------------------------------------------+ | ?????????????????????????????????????????????????? | | ?????????????????????????????????????????????????? | | ?????????????????????????????????????????????????? | | ?????????????????????????????????????????????????? | | ?????????????????????????????????????????????????? | | ?????????????????????????????????????????????????? | | ?????????????????????????????????????????????????? | | ?????????????????????????????????????????????????? | | ?????????????????????????????????????????????????? | | ?????????????????????????????????????????????????? | | ?????????????????????????????????????????????????? | | ?????????????????????????????????????????????????? | | ?????????????????????????????????????????????????? | | ?????????????????????????????????????????????????? | | ?????????????????????????????????????????????????? | | ?????????????????????????????????????????????????? | | ?????????????????????????????????????????????????? | | ?????????????????????????????????????????????????? | | ?????????????????????????????????????????????????? | | ?????????????????????????????????????????????????? | | ?????????????????????????????????????????????????? | | ?????????????????????????????????????????????????? | | ?????????????????????????????????????????????????? | | ??????????????##############?????????????????????? | | ????????????? """ #?????????????????????? | | ???????????? "" @ #?????????????????????? | | ???????????? "" ####################### | | ???????????"""" *]/h [! # | | ??????????? """ MMM;h ! | # | | ???????"? """""" *MMM;! ! # | | ?????#"" """""" MMM################### # | | ?????# " """""" []#?????????????????# # | | ?????# " "" ]#?????????????????# # | | ?????? " ""#?????????????????# T | | ???????""""""" """""""#?????????????????#+++# | | ?????#"" """"""""#?????????????????# | | ?????# """""""""""#?????????????????# | | ?????# " " " " #?????????????????# | | ?????# " " " "???????????????????# | | ?????" " " " """" " ??????????????????# | | ?????" """ " " """"???????????????????# | | ?????" " " " ??????????????????????##### | | ?????# """?"""""" "?????????????????????????? | | ?????# " ?????" """""?????????????????????????? | | ?????? ?????????" " ???????????????????????????? | | ?????????????????##??#???????????????????????????? | | ?????????????????????????????????????????????????? | | ?????????????????????????????????????????????????? | | ?????????????????????????????????????????????????? | | ?????????????????????????????????????????????????? | +----------------------------------------------------+ Best States ------------- Heat Dissipation 135 Coolant Potential 100 Energy Generation 65 Energy Capacity 825 Matter Stores 300 Matter Capacity 300 Sight Range 16 Terrain Scan Range 20 Terrain Scan Density 10 ECM Strength 2 Base Temperature (-) 200 Armor Coverage 2100 Resistance: KI 30 Resistance: TH 25 Core Shielding 20 Utility Shielding 33 Point Defense Rating 160 Evasion (%) 50 Targeting Accuracy 6 Recoil Reduction 6 Particle Charging 25 Offensive Hacking 20 Relay Coupler Types 4 Relay Coupler Value 82 Item Schematics ----------------- None Robot Schematics ------------------ None Fabricated ------------ Nothing Repaired ---------- Nothing Studied --------- Quantum Reactor | -2/Research | Hacked Alien Tech Used ----------------- None Achievements -------------- Hack The Planet Taming Of The Crushers Challenges ------------ None Game ------ Seed DirtyNetworkArray Manual? 0 Play Time 04:16:34 Cumulative 275.2 hours Start 2026.08.18 @ 16:59:54 End 2026.08.19 @ 02:40:27 Sessions 5 Manual Loads 0 Difficulty Rogue Special Mode None Game No. 261 Rogue 207 Adventurer 54 Explorer 0 Win Type - Total 11 Types 7/0/1/1/0/0/0/1/0/1 Lore% 77 Gallery% 66 Achievement% 60 Wizard Run 0 Options --------- Layout 1 ASCII 0 Keyboard 0 Movement Mouse Keybinds 1 Fullscreen 2 Font 32/Tamsyn Map View 50x35 Zoom Use 0% Tactical HUD 1 Map Filters NONE Filters NONE Steam 1 RUN: 3283388d-23f4-43d7-b038-18d20c867c2b